bitfinex-derivatives/quotes_BTCF0:USTF0_20251002
["timestamp","ask_amount","ask_price","bid_price","bid_amount"]
[1759438993325,2.28929994,120640.0,120630.0,0.1166701]
[1759438995722,2.28929994,120640.0,120630.0,0.03383]
[1759438995928,2.28929994,120640.0,120630.0,0.01279]
[1759438996227,2.3116406,120640.0,120630.0,0.01279]
[1759438996429,2.3116406,120640.0,120630.0,0.03383]
[1759438997430,2.28929994,120640.0,120630.0,0.03383]
[1759439004745,2.28929994,120640.0,120630.0,0.1166701]
[1759439005545,2.28929994,120640.0,120630.0,0.03383]
[1759439006447,2.28929994,120640.0,120630.0,0.1166701]
[1759439013043,2.28929994,120640.0,120630.0,0.0956301]
[1759439013754,2.28929994,120640.0,120630.0,0.1171201]
[1759439016256,2.28929994,120640.0,120630.0,0.0956301]
[1759439017647,3.00812236,120640.0,120620.0,0.01279]
[1759439017859,1.08128494,120630.0,120620.0,0.01279]
[1759439019360,1.83128494,120630.0,120620.0,0.01279]
[1759439022564,1.08128494,120630.0,120620.0,0.01279]
[1759439022963,1.83132494,120630.0,120620.0,0.01279]
[1759439024963,0.082847,120620.0,120610.0,0.0956382]
[1759439025160,1.08129184,120620.0,120610.0,0.0956382]
[1759439026064,1.08129184,120620.0,120610.0,0.1171282]
[1759439029062,1.08129184,120620.0,120610.0,0.0956382]
[1759439029766,1.08129184,120620.0,120610.0,0.1171282]
[1759439032267,1.39016709,120620.0,120600.0,0.11231886]
[1759439032463,1.74844484,120610.0,120600.0,0.20795124]
[1759439032659,1.74844484,120610.0,120600.0,0.08700238]
[1759439032859,1.74844484,120610.0,120600.0,0.01286]
[1759439034767,1.74844484,120610.0,120600.0,0.0957207]
[1759439035465,1.74844484,120610.0,120600.0,0.01286]
[1759439035659,0.99844484,120610.0,120600.0,0.01286]
[1759439035865,1.74844484,120610.0,120600.0,0.0957207]
[1759439036770,0.99844484,120610.0,120600.0,0.0957207]
[1759439036970,1.74848484,120610.0,120600.0,0.0957207]
[1759439041068,0.99844484,120610.0,120600.0,0.0957207]
[1759439041270,0.3608,120610.0,120600.0,0.83585312]
[1759439041574,0.3608,120610.0,120600.0,1.15467554]
[1759439041779,0.67962242,120620.0,120610.0,0.1173339]
[1759439041978,0.3608,120620.0,120610.0,0.83615632]
[1759439042269,1.41971587,120620.0,120610.0,0.83615632]
[1759439043072,1.41971587,120620.0,120610.0,0.5173339]
[1759439043776,1.73853829,120620.0,120610.0,0.5173339]
[1759439044372,1.73853829,120620.0,120610.0,0.1173339]
[1759439045778,1.82138519,120620.0,120610.0,0.1173339]
[1759439046379,1.50261348,120620.0,120610.0,0.1173339]
[1759439047077,1.51256003,120620.0,120610.0,0.1173339]
[1759439052281,1.50261304,120620.0,120610.0,0.1173339]
[1759439055285,1.86341304,120620.0,120610.0,0.1173339]
[1759439057094,1.54453991,120620.0,120610.0,0.1173339]
[1759439057288,1.87328003,120620.0,120610.0,0.1173339]
[1759439062790,1.5544069,120620.0,120610.0,0.1173339]
[1759439063097,1.87324003,120620.0,120610.0,0.1173339]
[1759439089315,1.89616488,120620.0,120610.0,0.1173339]
[1759439092819,1.15164003,120620.0,120610.0,0.1173339]
[1759439093022,1.87324003,120620.0,120610.0,0.1173339]
[1759439093222,1.89616513,120620.0,120610.0,0.1173339]
[1759439093410,1.89616513,120620.0,120610.0,0.0960239]
[1759439094018,1.89616513,120620.0,120610.0,0.1171039]
[1759439095925,2.29616513,120620.0,120600.0,0.01286]
[1759439096124,0.76252693,120610.0,120600.0,0.0345]
[1759439096423,1.51228693,120610.0,120600.0,0.0345]
[1759439097120,1.51228693,120610.0,120600.0,0.1173607]
[1759439097525,0.76252693,120610.0,120600.0,0.1173607]
[1759439097725,1.51228693,120610.0,120600.0,0.1173607]
[1759439100529,0.4436538,120610.0,120600.0,0.1173607]
[1759439100826,1.51228693,120610.0,120600.0,0.1173607]
[1759439103128,0.76252693,120610.0,120600.0,0.1173607]
[1759439103427,1.51228693,120610.0,120600.0,0.1173607]
[1759439105129,1.1934138,120610.0,120600.0,0.1173607]
[1759439105333,1.51228693,120610.0,120600.0,0.1173607]
[1759439106229,1.83128278,120610.0,120600.0,0.1173607]
[1759439111327,1.08152278,120610.0,120600.0,0.1173607]
[1759439111528,1.83128278,120610.0,120600.0,0.1173607]
[1759439116936,1.51234829,120610.0,120600.0,0.5173607]
[1759439119036,1.15154829,120610.0,120600.0,0.5173607]
[1759439119241,1.51234829,120610.0,120600.0,0.5173607]
[1759439125051,1.42949449,120610.0,120600.0,0.5173607]
[1759439125653,0.3608,120610.0,120600.0,0.5173607]
[1759439125844,1.42945449,120610.0,120600.0,0.5173607]
[1759439126451,0.67973449,120610.0,120600.0,0.83629519]
[1759439126656,1.11052,120610.0,120600.0,0.83629519]
[1759439126860,1.42945449,120610.0,120600.0,0.83629519]
[1759439129557,0.67973449,120610.0,120600.0,0.83629519]
[1759439129758,1.42941449,120610.0,120600.0,0.83629519]
[1759439132666,1.42941449,120610.0,120600.0,0.5173607]
[1759439132967,1.42941449,120610.0,120600.0,0.83629519]
[1759439133668,1.11048,120610.0,120600.0,0.83629519]
[1759439133867,1.42941449,120610.0,120600.0,0.83629519]
[1759439136771,1.51226829,120610.0,120600.0,0.83629519]
[1759439137674,0.67973449,120610.0,120600.0,0.83629519]
[1759439137867,1.42937449,120610.0,120600.0,0.83629519]
[1759439138068,1.51222829,120610.0,120600.0,0.83629519]
[1759439139173,0.46273893,120620.0,120610.0,0.1199138]
[1759439139372,0.37988743,120620.0,120610.0,0.43884829]
[1759439139864,0.69882192,120620.0,120610.0,0.43884829]
[1759439140270,0.3608,120620.0,120610.0,0.43884829]
[1759439140572,0.67973449,120620.0,120610.0,0.43884829]
[1759439143578,0.3608,120620.0,120610.0,0.43884829]
[1759439143769,0.67973449,120620.0,120610.0,0.43884829]
[1759439145770,0.3608,120620.0,120610.0,0.43884829]
[1759439146074,0.67973449,120620.0,120610.0,0.43884829]
[1759439149279,0.3608,120620.0,120610.0,0.43884829]
[1759439149780,0.67973449,120620.0,120610.0,0.43884829]
[1759439150280,0.3608,120620.0,120610.0,0.43884829]
[1759439150778,0.67973449,120620.0,120610.0,0.43884829]
[1759439151178,0.3608,120620.0,120610.0,0.43884829]
[1759439151380,0.67973449,120620.0,120610.0,0.43884829]
[1759439151880,0.76258139,120620.0,120610.0,0.43884829]
[1759439152780,0.76258139,120620.0,120610.0,0.1199138]
[1759439152977,0.76258139,120620.0,120610.0,0.43884829]
[1759439156478,0.4436469,120620.0,120610.0,0.43884829]
[1759439156881,0.76258139,120620.0,120610.0,0.1199138]
[1759439157381,1.08151588,120620.0,120610.0,0.1199138]
[1759439160087,0.4436469,120620.0,120610.0,0.1199138]
[1759439160288,1.08151588,120620.0,120610.0,0.1199138]
[1759439164192,0.4436469,120620.0,120610.0,0.1199138]
[1759439164392,1.08151588,120620.0,120610.0,0.1199138]
[1759439168294,0.76249793,120620.0,120610.0,0.1199138]
[1759439184214,0.75255113,120620.0,120610.0,0.1199138]
[1759439190016,0.4337001,120620.0,120610.0,0.1199138]
[1759439190217,0.75255113,120620.0,120610.0,0.1199138]
[1759439197321,0.39175113,120620.0,120610.0,0.1199138]
[1759439197621,0.75255113,120620.0,120610.0,0.1199138]
[1759439198223,0.3608,120630.0,120620.0,0.1176669]
[1759439198422,0.35085356,120630.0,120620.0,0.43651793]
[1759439199422,1.11016,120640.0,120630.0,0.1176601]
[1759439200624,1.13264954,120640.0,120630.0,0.1176601]
[1759439200823,1.45150057,120640.0,120630.0,0.1176601]
[1759439201122,1.45150057,120640.0,120630.0,0.12589177]
[1759439201323,1.42901103,120640.0,120630.0,0.12589177]
[1759439204826,1.42901103,120640.0,120630.0,0.1176601]
[1759439216535,1.42901103,120640.0,120630.0,0.0959001]
[1759439216933,1.42901103,120640.0,120630.0,0.1188501]
[1759439219148,1.42881103,120640.0,120630.0,0.1188501]
[1759439219436,0.3608,120640.0,120630.0,0.43770113]
[1759439219633,1.42881103,120640.0,120630.0,0.1188501]
[1759439220238,1.84786372,120640.0,120630.0,0.01306]
[1759439220635,1.84786372,120640.0,120630.0,0.0959001]
[1759439220838,1.91306339,120640.0,120630.0,0.0959001]
[1759439224341,1.84786372,120640.0,120630.0,0.1188501]
[1759439225343,1.91420979,120640.0,120630.0,0.1188501]
[1759439228446,1.16504979,120640.0,120630.0,0.1188501]
[1759439228744,1.91420979,120640.0,120630.0,0.1188501]
[1759439229449,1.16504979,120640.0,120630.0,0.1188501]
[1759439229647,1.91420979,120640.0,120630.0,0.1188501]
[1759439229947,1.59535876,120640.0,120630.0,0.1188501]
[1759439230151,0.84619876,120640.0,120630.0,0.1188501]
[1759439230352,2.2328372,120640.0,120630.0,0.1188501]
[1759439231050,2.16649113,120640.0,120630.0,0.1188501]
[1759439237457,1.41733113,120640.0,120630.0,0.1188501]
[1759439237755,2.16649113,120640.0,120630.0,0.1188501]
[1759439238661,1.52901269,120640.0,120630.0,0.1188501]
[1759439238958,2.16649113,120640.0,120630.0,0.1188501]
[1759439239770,1.41733113,120640.0,120630.0,0.1188501]
[1759439239969,2.16645113,120640.0,120630.0,0.1188501]
[1759439240871,2.14739844,120640.0,120630.0,0.1188501]
[1759439241366,0.3608,120640.0,120630.0,0.83758932]
[1759439241561,1.42865922,120640.0,120630.0,0.83758932]
[1759439241966,1.06785922,120640.0,120630.0,0.83758932]
[1759439248471,0.74912,120640.0,120630.0,0.83758932]
[1759439248870,1.06785922,120640.0,120630.0,0.83758932]
[1759439249275,0.31873922,120640.0,120630.0,0.83758932]
[1759439249775,1.06781922,120640.0,120630.0,0.83758932]
[1759439250879,0.4436263,120650.0,120640.0,0.1181632]
[1759439251079,1.53376493,120650.0,120640.0,0.43690242]
[1759439251376,1.53376493,120650.0,120640.0,0.1181632]
[1759439254277,0.78468493,120650.0,120640.0,0.43690242]
[1759439254478,1.53372493,120650.0,120640.0,0.43690242]
[1759439254978,1.53372493,120650.0,120640.0,0.1181632]
[1759439255277,1.53372493,120650.0,120640.0,0.43690242]
[1759439255777,1.51140552,120650.0,120640.0,0.43690242]
[1759439258680,1.51140552,120650.0,120640.0,0.44523814]
[1759439262884,1.15060552,120650.0,120640.0,0.44523814]
[1759439263082,1.51140552,120650.0,120640.0,0.44523814]
[1759439263879,1.51140552,120650.0,120640.0,0.43690242]
[1759439264483,1.51140552,120650.0,120640.0,0.1181632]
[1759439264780,1.51140552,120650.0,120640.0,0.43690242]
[1759439271385,1.5336701,120650.0,120640.0,0.43690242]
[1759439275286,1.5336701,120650.0,120640.0,0.1181632]
[1759439275488,1.5336701,120650.0,120640.0,0.43690242]
[1759439275886,1.5336701,120650.0,120640.0,0.03533]
[1759439276288,1.5336701,120650.0,120640.0,0.1181632]
[1759439276494,1.5336701,120650.0,120640.0,0.43690242]
[1759439276789,1.51140552,120650.0,120640.0,0.43690242]
[1759439277593,1.51140552,120650.0,120640.0,0.1181632]
[1759439277793,1.51140552,120650.0,120640.0,0.43690242]
[1759439281898,1.1926663,120650.0,120640.0,0.43690242]
[1759439282094,1.51140552,120650.0,120640.0,0.43690242]
[1759439283300,0.76236552,120650.0,120640.0,0.43690242]
[1759439283602,1.51124552,120650.0,120640.0,0.43690242]
[1759439285395,0.4436263,120650.0,120640.0,0.43690242]
[1759439285693,1.51124552,120650.0,120640.0,0.43690242]
[1759439286498,1.15044552,120650.0,120640.0,0.43690242]
[1759439286698,1.51124552,120650.0,120640.0,0.43690242]
[1759439286899,1.15044552,120650.0,120640.0,0.43690242]
[1759439287098,1.51124552,120650.0,120640.0,0.43690242]
[1759439287300,1.15044552,120650.0,120640.0,0.43690242]
[1759439287597,0.4436263,120650.0,120640.0,0.43690242]
[1759439287908,1.51120552,120650.0,120640.0,0.43690242]
[1759439290412,1.1924663,120650.0,120640.0,0.1181632]
[1759439290599,0.3608,120650.0,120640.0,0.43681707]
[1759439290805,0.3608,120670.0,120660.0,0.1172895]
[1759439291107,0.38303199,120670.0,120660.0,0.43594337]
[1759439291300,1.13187199,120670.0,120660.0,0.43594337]
[1759439292201,0.38303199,120670.0,120660.0,0.83594337]
[1759439292402,0.3608,120670.0,120660.0,0.83594337]
[1759439293807,0.3608,120670.0,120660.0,0.90107261]
[1759439298106,0.3608,120680.0,120670.0,0.0828126]
[1759439298311,0.38287717,120680.0,120670.0,0.43593647]
[1759439301012,0.02207717,120680.0,120670.0,0.1172826]
[1759439301206,1.10952,120690.0,120680.0,0.0955658]
[1759439301412,1.13152678,120690.0,120680.0,0.1172758]
[1759439302011,1.45018065,120690.0,120680.0,0.1172758]
[1759439302511,1.13152678,120690.0,120680.0,0.12540265]
[1759439303118,0.38280678,120690.0,120680.0,0.12540265]
[1759439303526,0.38280678,120690.0,120680.0,0.84405652]
[1759439304224,0.3608,120690.0,120680.0,0.84405652]
[1759439304426,0.38270757,120690.0,120680.0,0.84405652]
[1759439304612,1.1290957,120700.0,120690.0,0.1185589]
[1759439304814,0.40232334,120700.0,120690.0,0.1185589]
[1759439305121,1.15100334,120700.0,120690.0,0.1185589]
[1759439306316,1.15100334,120700.0,120690.0,0.43721277]
[1759439306513,0.40232334,120700.0,120690.0,0.43721277]
[1759439306919,0.04152334,120700.0,120690.0,0.1185589]
[1759439307419,0.02190764,120700.0,120690.0,0.1185589]
[1759439310226,0.02190764,120700.0,120690.0,0.43721277]
[1759439311430,0.10469964,120700.0,120690.0,0.43721277]
[1759439312520,0.10469964,120700.0,120690.0,0.1185589]
[1759439313332,0.42335351,120700.0,120690.0,0.1185589]
[1759439314531,0.78415351,120700.0,120690.0,0.1185589]
[1759439315529,0.78415351,120700.0,120690.0,0.03576]
[1759439315724,0.78415351,120700.0,120690.0,0.1185589]
[1759439315929,0.46549964,120700.0,120690.0,0.1185589]
[1759439316129,0.78415351,120700.0,120690.0,0.1185589]
[1759439321234,0.76224587,120700.0,120690.0,0.1185589]
[1759439322738,0.76224587,120700.0,120690.0,0.03576]
[1759439323038,0.443592,120700.0,120690.0,0.03576]
[1759439323238,0.76224587,120700.0,120690.0,0.03576]
[1759439323840,0.76224587,120700.0,120690.0,0.1185589]
[1759439328640,1.48089974,120700.0,120690.0,0.01325]
[1759439328944,1.16224587,120700.0,120690.0,0.01325]
[1759439329841,1.91064587,120700.0,120690.0,0.0960489]
[1759439330243,1.591992,120700.0,120690.0,0.0960489]
[1759439330539,1.91064587,120700.0,120690.0,0.0960489]
[1759439330739,1.91064587,120700.0,120690.0,0.1190089]
[1759439334246,1.16224587,120700.0,120690.0,0.1190089]
[1759439334542,1.91068587,120700.0,120690.0,0.1190089]
[1759439335446,1.16224587,120700.0,120690.0,0.1190089]
[1759439335640,1.91068587,120700.0,120690.0,0.1190089]
[1759439337040,1.16224587,120700.0,120690.0,0.1190089]
[1759439337345,1.91068587,120700.0,120690.0,0.1190089]
[1759439337532,1.16224587,120700.0,120690.0,0.1190089]
[1759439337733,1.91068587,120700.0,120690.0,0.1190089]
[1759439340146,1.16224587,120700.0,120690.0,0.1190089]
[1759439340341,1.91068587,120700.0,120690.0,0.1190089]
[1759439341344,1.16224587,120700.0,120690.0,0.1190089]
[1759439341545,1.91068587,120700.0,120690.0,0.1190089]
[1759439343344,1.16224587,120700.0,120690.0,0.1190089]
[1759439343549,1.91068587,120700.0,120690.0,0.1190089]
[1759439346754,1.93256517,120700.0,120690.0,0.1190089]
[1759439346954,1.93256518,120700.0,120690.0,0.1190089]
[1759439348555,1.93252518,120700.0,120690.0,0.1190089]
[1759439348749,1.91064587,120700.0,120690.0,0.1190089]
[1759439351459,1.591992,120700.0,120690.0,0.1190089]
[1759439351761,1.91064587,120700.0,120690.0,0.1190089]
[1759439352260,2.22890256,120700.0,120690.0,0.1190089]
[1759439353859,1.591992,120700.0,120690.0,0.1190089]
[1759439354058,2.22890256,120700.0,120690.0,0.1190089]
[1759439357164,2.25081211,120700.0,120690.0,0.1190089]
[1759439357366,1.61390155,120700.0,120690.0,0.1190089]
[1759439357761,2.25081211,120700.0,120690.0,0.1190089]
[1759439358566,1.89001211,120700.0,120690.0,0.1190089]
[1759439358765,2.61161211,120700.0,120690.0,0.1190089]
[1759439359766,1.86321211,120700.0,120690.0,0.1190089]
[1759439359967,2.61157211,120700.0,120690.0,0.1190089]
[1759439365263,1.86321211,120700.0,120690.0,0.1190089]
[1759439365467,1.78042011,120700.0,120690.0,0.1190089]
[1759439365664,1.10912,120700.0,120690.0,0.83746418]
[1759439365973,1.42757528,120700.0,120690.0,0.83746418]
[1759439367670,1.42757528,120700.0,120690.0,0.5190089]
[1759439367870,1.42757528,120700.0,120690.0,0.83746418]
[1759439368370,0.3608,120700.0,120690.0,0.83746418]
[1759439368570,1.10912,120700.0,120690.0,0.83746418]
[1759439368770,1.42757528,120700.0,120690.0,0.83746418]
[1759439369472,0.67925528,120700.0,120690.0,0.83746418]
[1759439369672,1.42757528,120700.0,120690.0,0.83746418]
[1759439370566,1.42757528,120700.0,120690.0,0.89707328]
[1759439371073,1.06677528,120700.0,120690.0,0.83746418]
[1759439372473,0.78142995,120710.0,120700.0,0.1187721]
[1759439372773,1.55175111,120710.0,120700.0,0.43722738]
[1759439373572,1.55175111,120710.0,120700.0,0.1187721]
[1759439373775,1.55175111,120710.0,120700.0,0.43722738]
[1759439374580,0.40218533,120710.0,120700.0,0.43722738]
[1759439374776,0.38018417,120710.0,120700.0,1.15568266]
[1759439374982,1.12850417,120710.0,120700.0,1.15568266]
[1759439375282,1.12850417,120710.0,120700.0,1.22127388]
[1759439375777,1.10912,120710.0,120700.0,1.22127388]
[1759439375979,1.10912,120720.0,120710.0,0.1182852]
[1759439376179,1.1311193,120720.0,120710.0,0.43674048]
[1759439377283,1.1311193,120720.0,120710.0,0.44511063]
[1759439377983,0.74832,120720.0,120710.0,0.44511063]
[1759439378574,0.74832,120720.0,120710.0,0.12665535]
[1759439378780,0.74832,120720.0,120710.0,0.44511063]
[1759439379489,0.74832,120720.0,120710.0,0.12665535]
[1759439379987,0.74832,120720.0,120710.0,0.44511063]
[1759439380289,1.06677528,120720.0,120710.0,0.44511063]
[1759439381596,1.06677528,120720.0,120710.0,0.12665535]
[1759439381790,1.06677528,120720.0,120710.0,0.44511063]
[1759439382592,1.06677528,120720.0,120710.0,0.43674048]
[1759439383482,1.42757528,120720.0,120710.0,0.43674048]
[1759439383888,1.74603056,120720.0,120710.0,0.43674048]
[1759439384393,1.42757528,120720.0,120710.0,0.43674048]
[1759439385389,0.02194905,120720.0,120710.0,1.15519576]
[1759439385590,1.42745528,120730.0,120720.0,0.1182784]
[1759439385785,1.4494037,120730.0,120720.0,0.43673368]
[1759439386189,1.5321752,120730.0,120720.0,0.43673368]
[1759439386590,1.5321752,120730.0,120720.0,0.1182784]
[1759439386792,1.5321752,120730.0,120720.0,0.43673368]
[1759439386992,1.5321752,120730.0,120720.0,0.1182784]
[1759439387799,1.51022678,120730.0,120720.0,0.1182784]
[1759439391099,1.51022678,120730.0,120720.0,0.43673368]
[1759439394102,1.51022678,120730.0,120720.0,0.1182784]
[1759439397104,1.51022678,120730.0,120720.0,0.0355]
[1759439397303,1.51022678,120730.0,120720.0,0.0954384]
[1759439397697,1.51022678,120730.0,120720.0,0.1173184]
[1759439398102,1.51014678,120730.0,120720.0,0.1173184]
[1759439398907,1.82860206,120730.0,120720.0,0.1173184]
[1759439399113,1.08048206,120730.0,120720.0,0.1173184]
[1759439399309,1.51014678,120730.0,120720.0,0.1173184]
[1759439402113,1.82860206,120730.0,120720.0,0.1173184]
[1759439403112,1.08048206,120730.0,120720.0,0.1173184]
[1759439403415,1.82856206,120730.0,120720.0,0.1173184]
[1759439404816,0.76202678,120730.0,120720.0,0.1173184]
[1759439405015,1.51010678,120730.0,120720.0,0.1173184]
[1759439406916,0.76202678,120730.0,120720.0,0.1173184]
[1759439407115,1.51010678,120730.0,120720.0,0.1173184]
[1759439408216,0.76202678,120730.0,120720.0,0.1173184]
[1759439408417,1.51010678,120730.0,120720.0,0.1173184]
[1759439409118,0.76202678,120730.0,120720.0,0.1173184]
[1759439409313,1.51010678,120730.0,120720.0,0.1173184]
[1759439410311,0.4435715,120730.0,120720.0,0.1173184]
[1759439410513,1.1916515,120730.0,120720.0,0.1173184]
[1759439410713,1.51010678,120730.0,120720.0,0.1173184]
[1759439410913,0.4435715,120730.0,120720.0,0.1173184]
[1759439411119,1.51010678,120730.0,120720.0,0.1173184]
[1759439412222,1.50993382,120730.0,120720.0,0.1173184]
[1759439413109,1.50989382,120730.0,120720.0,0.1173184]
[1759439417323,1.53188223,120730.0,120720.0,0.1173184]
[1759439418129,0.78384223,120730.0,120720.0,0.1173184]
[1759439418433,1.53188223,120730.0,120720.0,0.1173184]
[1759439419427,1.17108223,120730.0,120720.0,0.1173184]
[1759439420126,0.42304223,120730.0,120720.0,0.1173184]
[1759439420326,1.17108223,120730.0,120720.0,0.1173184]
[1759439420826,0.42304223,120730.0,120720.0,0.1173184]
[1759439421029,1.17108223,120730.0,120720.0,0.1173184]
[1759439422631,1.14909382,120730.0,120720.0,0.1173184]
[1759439423030,1.17108256,120730.0,120720.0,0.1173184]
[1759439427429,0.42304256,120730.0,120720.0,0.1173184]
[1759439427737,1.17108256,120730.0,120720.0,0.1173184]
[1759439434338,0.42304256,120730.0,120720.0,0.1173184]
[1759439434638,1.17104256,120730.0,120720.0,0.1173184]
[1759439438344,0.85276024,120730.0,120720.0,0.1173184]
[1759439438537,1.17104256,120730.0,120720.0,0.1173184]
[1759439441146,0.42304256,120730.0,120720.0,0.1173184]
[1759439441340,1.17104256,120730.0,120720.0,0.1173184]
[1759439454454,0.42304256,120730.0,120720.0,0.1173184]
[1759439454658,0.85268024,120730.0,120720.0,0.1173184]
[1759439454858,0.42304256,120730.0,120720.0,0.1173184]
[1759439455058,1.17096256,120730.0,120720.0,0.1173184]
[1759439455260,0.42304256,120730.0,120720.0,0.1173184]
[1759439455451,1.17096256,120730.0,120720.0,0.1173184]
[1759439456258,0.85268024,120730.0,120720.0,0.1173184]
[1759439456460,1.17096256,120730.0,120720.0,0.1173184]
[1759439469667,1.17092256,120730.0,120720.0,0.1173184]
[1759439470370,1.14893382,120730.0,120720.0,0.1173184]
[1759439471171,1.17123804,120730.0,120720.0,0.1173184]
[1759439471869,0.85295572,120730.0,120720.0,0.1173184]
[1759439472070,1.17123804,120730.0,120720.0,0.1173184]
[1759439474274,1.17121495,120730.0,120720.0,0.43557763]
[1759439474771,1.17121495,120730.0,120720.0,0.1173184]
[1759439475071,1.17121495,120730.0,120720.0,0.43557763]
[1759439478976,0.42333495,120730.0,120720.0,0.43557763]
[1759439479172,1.17117495,120730.0,120720.0,0.43557763]
[1759439481876,1.17117495,120730.0,120720.0,0.1173184]
[1759439483075,1.17117495,120730.0,120720.0,0.43557763]
[1759439486183,0.85291572,120730.0,120720.0,0.43557763]
[1759439486875,0.02230422,120730.0,120720.0,0.1173184]
[1759439487071,0.77010422,120730.0,120720.0,0.1173184]
[1759439487275,1.08836345,120730.0,120720.0,0.43557763]
[1759439487884,1.17113495,120730.0,120720.0,0.43557763]
[1759439488180,1.17113495,120730.0,120720.0,0.1173184]
[1759439488381,1.17113495,120730.0,120720.0,0.43557763]
[1759439489282,0.42333495,120730.0,120720.0,0.43557763]
[1759439489483,1.17113495,120730.0,120720.0,0.43557763]
[1759439490177,0.02230422,120730.0,120720.0,0.75383686]
[1759439490375,0.43150777,120750.0,120740.0,0.03446]
[1759439490577,1.19338552,120750.0,120740.0,0.43548383]
[1759439490777,1.19338552,120750.0,120740.0,0.1172246]
[1759439491481,1.17104557,120750.0,120740.0,0.1172246]
[1759439495186,0.85278634,120750.0,120740.0,0.1172246]
[1759439495387,1.17104557,120750.0,120740.0,0.1172246]
[1759439495785,0.85278634,120750.0,120740.0,0.1172246]
[1759439496085,1.17104557,120750.0,120740.0,0.1172246]
[1759439498587,0.85278634,120750.0,120740.0,0.1172246]
[1759439498881,0.10502634,120750.0,120740.0,0.43548383]
[1759439499087,0.94576557,120750.0,120740.0,0.43548383]
[1759439500588,0.62750634,120750.0,120740.0,0.43548383]
[1759439500789,0.94576557,120750.0,120740.0,0.43548383]
[1759439501388,0.94576557,120750.0,120740.0,0.50064275]
[1759439501588,0.94576557,120750.0,120740.0,0.50878095]
[1759439501989,0.94576557,120750.0,120740.0,0.50064275]
[1759439502189,0.94576557,120750.0,120740.0,0.18238352]
[1759439505088,0.94576557,120750.0,120740.0,0.09961892]
[1759439506790,0.62750634,120750.0,120740.0,0.09961892]
[1759439506995,0.94576557,120750.0,120740.0,0.09961892]
[1759439513600,1.6640248,120750.0,120740.0,0.01263]
[1759439513900,0.0827647,120740.0,120730.0,0.01263]
[1759439514088,0.7415516,120740.0,120730.0,0.01263]
[1759439519706,0.7415516,120740.0,120730.0,0.0954015]
[1759439520410,1.4891516,120740.0,120730.0,0.0954015]
[1759439521105,1.4891516,120740.0,120730.0,0.1168815]
[1759439521499,1.4891516,120740.0,120730.0,0.43514073]
[1759439521898,1.17089237,120740.0,120730.0,0.43514073]
[1759439522807,0.42329237,120740.0,120730.0,0.43514073]
[1759439523008,1.17089237,120740.0,120730.0,0.43514073]
[1759439523401,0.85263314,120740.0,120730.0,0.83514073]
[1759439524003,1.17089237,120740.0,120730.0,0.83514073]
[1759439524700,1.17089237,120740.0,120730.0,0.5168815]
[1759439524899,0.10503314,120740.0,120730.0,0.83514073]
[1759439525203,0.76986844,120740.0,120730.0,0.83514073]
[1759439526805,0.02226844,120740.0,120730.0,0.83514073]
[1759439527014,0.58261995,120760.0,120750.0,0.1170679]
[1759439527202,0.60463085,120760.0,120750.0,0.43532713]
[1759439527510,1.11017008,120760.0,120750.0,0.43532713]
[1759439529410,0.04431085,120760.0,120750.0,0.43532713]
[1759439529598,0.99812672,120770.0,120760.0,0.117061]
[1759439529804,1.02000245,120770.0,120760.0,0.117061]
[1759439530110,0.99026381,120770.0,120760.0,0.117061]
[1759439530312,1.02000245,120770.0,120760.0,0.43532023]
[1759439530510,0.04417568,120770.0,120760.0,1.15357946]
[1759439530709,0.02187573,120770.0,120760.0,1.15357946]
[1759439531012,0.9390673,120780.0,120770.0,0.1170541]
[1759439531209,0.9390673,120780.0,120770.0,0.43531333]
[1759439532012,0.3923473,120780.0,120770.0,0.43531333]
[1759439532214,0.79190943,120780.0,120770.0,0.43531333]
[1759439532412,1.11016866,120780.0,120770.0,0.43531333]
[1759439534211,0.79190943,120780.0,120770.0,0.1170541]
[1759439534707,0.79190943,120780.0,120770.0,0.12512661]
[1759439535107,0.76960948,120780.0,120770.0,0.12512661]
[1759439535313,0.02204948,120780.0,120770.0,0.12512661]
[1759439541021,1.06545402,120790.0,120780.0,0.0955674]
[1759439541319,1.06545402,120790.0,120780.0,0.1170474]
[1759439541320,1.06537402,120790.0,120780.0,0.1170474]
[1759439541517,0.7474,120790.0,120780.0,0.1170474]
[1759439541918,1.06537402,120790.0,120780.0,0.1170474]
[1759439544821,1.06537402,120790.0,120780.0,0.03431]
[1759439545022,0.31797402,120790.0,120780.0,0.03431]
[1759439545223,1.06533402,120790.0,120780.0,0.03431]
[1759439545918,0.02757652,120810.0,120790.0,0.03558]
[1759439546121,0.33714497,120810.0,120800.0,0.03558]
[1759439546318,1.08450497,120810.0,120800.0,0.03558]
[1759439547021,0.76653095,120810.0,120800.0,0.03558]
[1759439547222,1.08450497,120810.0,120800.0,0.03558]
[1759439547424,1.09260051,120810.0,120800.0,0.03558]
[1759439547614,1.41057453,120810.0,120800.0,0.03558]
[1759439548825,1.09260051,120810.0,120800.0,0.03558]
[1759439549823,1.08450497,120810.0,120800.0,0.03558]
[1759439550621,1.80247899,120810.0,120790.0,0.01371]
[1759439550923,0.31797402,120800.0,120790.0,0.01371]
[1759439551120,1.03957402,120800.0,120790.0,0.01371]
[1759439554432,1.06126749,120800.0,120790.0,0.01371]
[1759439554837,1.03957402,120800.0,120790.0,0.01371]
[1759439555727,1.43957402,120800.0,120780.0,0.01283]
[1759439555925,1.42605402,120790.0,120780.0,0.01283]
[1759439556637,1.42605402,120790.0,120780.0,0.0347]
[1759439564042,1.44778601,120790.0,120780.0,0.0347]
[1759439566741,1.42605402,120790.0,120780.0,0.0347]
[1759439567241,1.44780897,120790.0,120780.0,0.0347]
[1759439567740,1.44780897,120790.0,120780.0,0.1174374]
[1759439568643,1.42605402,120790.0,120780.0,0.1174374]
[1759439569240,1.44782971,120790.0,120780.0,0.1174374]
[1759439569441,1.80862971,120790.0,120780.0,0.1174374]
[1759439569841,1.06134971,120790.0,120780.0,0.1174374]
[1759439570042,1.80862971,120790.0,120780.0,0.1174374]
[1759439575250,1.81762971,120790.0,120780.0,0.1174374]
[1759439588159,1.49965569,120790.0,120780.0,0.1174374]
[1759439588364,1.81762971,120790.0,120780.0,0.1174374]
[1759439588860,1.07034971,120790.0,120780.0,0.1174374]
[1759439589054,1.81758971,120790.0,120780.0,0.1174374]
[1759439589255,1.81782449,120790.0,120780.0,0.1174374]
[1759439590161,1.79581402,120790.0,120780.0,0.1174374]
[1759439590761,1.81782426,120790.0,120780.0,0.1174374]
[1759439592456,1.07058426,120790.0,120780.0,0.1174374]
[1759439592660,1.81782426,120790.0,120780.0,0.1174374]
[1759439593050,1.81782426,120790.0,120780.0,0.0347]
[1759439594454,1.81783004,120790.0,120780.0,0.0347]
[1759439595160,1.81783004,120790.0,120780.0,0.1174373]
[1759439595857,1.81783004,120790.0,120780.0,0.0347]
[1759439596261,1.83714771,120790.0,120780.0,0.1174373]
[1759439596850,1.83714771,120790.0,120780.0,0.0827373]
[1759439597062,1.83714771,120790.0,120770.0,0.16175742]
[1759439597063,2.55512751,120790.0,120770.0,0.01283]